[Event "Titled Tuesday Blitz April 18 Early 2023"]
[White "Estrada Nieto, Julian"]
[Black "Mikhaylova, Irina"]
[WhiteFideId "5101018"]
[BlackFideId "4109040"]
[WhiteElo "2161"]
[BlackElo "1975"]
[Result "0-1"]
[Round "06"]
[TimeControl "180+2"]
[Date "2023.04.18"]
[WhiteClock "0:00:01"]
[BlackClock "0:00:17"]

1. e4 {[%clk 0:03:00]}  c5 {[%clk 0:02:59]} 2. Nf3 {[%clk 0:03:00]}  Nc6 {[%clk 0:03:00]} 3. Bb5 {[%clk 0:03:00]}  e6 {[%clk 0:03:00]} 4. O-O {[%clk 0:02:59]}  Nge7 {[%clk 0:03:00]} 5. Re1 {[%clk 0:03:00]}  Ng6 {[%clk 0:03:00]} 6. c3 {[%clk 0:02:59]}  Be7 {[%clk 0:03:00]} 7. d4 {[%clk 0:02:58]}  cxd4 {[%clk 0:03:00]} 8. cxd4 {[%clk 0:02:58]}  d5 {[%clk 0:03:01]} 9. e5 {[%clk 0:02:52]}  O-O {[%clk 0:03:01]} 10. Nc3 {[%clk 0:02:43]}  Bd7 {[%clk 0:03:01]} 11. Bd3 {[%clk 0:02:42]}  Rc8 {[%clk 0:03:01]} 12. g3 {[%clk 0:02:38]}  Re8 {[%clk 0:02:58]} 13. h4 {[%clk 0:02:35]}  Nf8 {[%clk 0:02:58]} 14. a3 {[%clk 0:02:19]}  Na5 {[%clk 0:02:50]} 15. Ng5 {[%clk 0:02:18]}  h6 {[%clk 0:02:24]} 16. Nh3 {[%clk 0:02:17]}  Qb6 {[%clk 0:01:51]} 17. Qg4 {[%clk 0:02:12]}  Kh8 {[%clk 0:01:36]} 18. Nf4 {[%clk 0:01:25]}  f5 {[%clk 0:01:13]} 19. exf6 {[%clk 0:01:13]}  Bxf6 {[%clk 0:01:14]} 20. Ng6+ {[%clk 0:01:08]}  Kg8 {[%clk 0:00:37]} 21. Ne5 {[%clk 0:01:08]}  Bxe5 {[%clk 0:00:21]} 22. Rxe5 {[%clk 0:01:06]}  Nc6 {[%clk 0:00:18]} 23. Bxh6 {[%clk 0:01:00]}  Re7 {[%clk 0:00:19]} 24. Rg5 {[%clk 0:00:57]}  Qxd4 {[%clk 0:00:17]} 25. Qxd4 {[%clk 0:00:21]}  Nxd4 {[%clk 0:00:17]} 26. Rg4 {[%clk 0:00:22]}  Nf3+ {[%clk 0:00:15]} 27. Kg2 {[%clk 0:00:21]}  Ne5 {[%clk 0:00:15]} 28. Bg5 {[%clk 0:00:14]}  Nxg4 {[%clk 0:00:14]} 29. Bxe7 {[%clk 0:00:13]}  Ne5 {[%clk 0:00:15]} 30. Be2 {[%clk 0:00:13]}  Nc6 {[%clk 0:00:15]} 31. Bd6 {[%clk 0:00:13]}  Rd8 {[%clk 0:00:15]} 32. Bc7 {[%clk 0:00:12]}  Rc8 {[%clk 0:00:15]} 33. Bd6 {[%clk 0:00:12]}  Rd8 {[%clk 0:00:15]} 34. Rd1 {[%clk 0:00:10]}  Be8 {[%clk 0:00:15]} 35. Bc7 {[%clk 0:00:09]}  Rc8 {[%clk 0:00:15]} 36. Bf4 {[%clk 0:00:09]}  e5 {[%clk 0:00:15]} 37. Bg5 {[%clk 0:00:09]}  d4 {[%clk 0:00:15]} 38. Ne4 {[%clk 0:00:08]}  Ne6 {[%clk 0:00:15]} 39. Bc4 {[%clk 0:00:07]}  Bf7 {[%clk 0:00:16]} 40. Nd6 {[%clk 0:00:07]}  Re8 {[%clk 0:00:15]} 41. Nxe8 {[%clk 0:00:07]}  Nxg5 {[%clk 0:00:15]} 42. Bxf7+ {[%clk 0:00:05]}  Nxf7 {[%clk 0:00:16]} 43. Nc7 {[%clk 0:00:04]}  e4 {[%clk 0:00:14]} 44. Nd5 {[%clk 0:00:04]}  Nfe5 {[%clk 0:00:14]} 45. Nf4 {[%clk 0:00:03]}  Nf3 {[%clk 0:00:14]} 46. Ne2 {[%clk 0:00:02]}  d3 {[%clk 0:00:14]} 47. Nf4 {[%clk 0:00:02]}  Nfd4 {[%clk 0:00:14]} 48. Nd5 {[%clk 0:00:01]}  Nf5 {[%clk 0:00:14]} 49. Ne3 {[%clk 0:00:01]}  Nd6 {[%clk 0:00:15]} 50. Nd5 {[%clk 0:00:01]}  Nd4 {[%clk 0:00:15]} 51. Ne3 {[%clk 0:00:01]}  Nc2 {[%clk 0:00:15]} 52. Nxc2 {[%clk 0:00:01]}  e3 {[%clk 0:00:16]} 53. Rc1 {[%clk 0:00:02]}  e2 {[%clk 0:00:16]} 54. Ne3 {[%clk 0:00:01]}  d2 {[%clk 0:00:17]} 0-1


[Site "https://www.chess.com"]

[Event "Titled Tuesday Blitz April 18 Early 2023"]
[White "Seder, Mohammed"]
[Black "Dixit, Nikhil"]
[WhiteFideId "11505567"]
[BlackFideId "5059534"]
[WhiteElo "1862"]
[BlackElo "2207"]
[Result "1-0"]
[Round "06"]
[TimeControl "180+2"]
[Date "2023.04.18"]
[WhiteClock "0:00:28"]
[BlackClock "0:00:07"]

1. e4 {[%clk 0:03:00]}  c5 {[%clk 0:02:58]} 2. Nf3 {[%clk 0:03:01]}  Nc6 {[%clk 0:02:57]} 3. Bb5 {[%clk 0:03:01]}  d6 {[%clk 0:02:34]} 4. Bxc6+ {[%clk 0:02:56]}  bxc6 {[%clk 0:02:34]} 5. O-O {[%clk 0:02:54]}  e5 {[%clk 0:02:30]} 6. c3 {[%clk 0:02:49]}  g5 {[%clk 0:02:28]} 7. d4 {[%clk 0:02:31]}  g4 {[%clk 0:02:26]} 8. Ne1 {[%clk 0:02:29]}  cxd4 {[%clk 0:02:11]} 9. cxd4 {[%clk 0:02:30]}  Ba6 {[%clk 0:02:10]} 10. Nd3 {[%clk 0:02:15]}  exd4 {[%clk 0:02:08]} 11. Re1 {[%clk 0:02:07]}  Bg7 {[%clk 0:01:54]} 12. Qxg4 {[%clk 0:02:06]}  Nf6 {[%clk 0:01:41]} 13. Qxg7 {[%clk 0:02:02]}  Rg8 {[%clk 0:01:40]} 14. Qh6 {[%clk 0:02:02]}  Bxd3 {[%clk 0:01:41]} 15. e5 {[%clk 0:01:59]}  dxe5 {[%clk 0:01:17]} 16. Rxe5+ {[%clk 0:02:00]}  Kd7 {[%clk 0:01:18]} 17. Bg5 {[%clk 0:01:51]}  Bg6 {[%clk 0:01:02]} 18. Qh4 {[%clk 0:01:44]}  Re8 {[%clk 0:00:54]} 19. Rxe8 {[%clk 0:01:34]}  Qxe8 {[%clk 0:00:53]} 20. Qxd4+ {[%clk 0:01:32]}  Nd5 {[%clk 0:00:53]} 21. Nc3 {[%clk 0:01:32]}  Qe6 {[%clk 0:00:49]} 22. Rd1 {[%clk 0:01:30]}  Re8 {[%clk 0:00:41]} 23. Qxa7+ {[%clk 0:01:30]}  Kc8 {[%clk 0:00:40]} 24. Qa8+ {[%clk 0:01:22]}  Kc7 {[%clk 0:00:33]} 25. Nxd5+ {[%clk 0:01:20]}  Qxd5 {[%clk 0:00:30]} 26. Bf4+ {[%clk 0:01:03]}  Kb6 {[%clk 0:00:30]} 27. Qa4 {[%clk 0:00:53]}  Qe4 {[%clk 0:00:18]} 28. Qb3+ {[%clk 0:00:51]}  Ka7 {[%clk 0:00:16]} 29. Be3+ {[%clk 0:00:51]}  Ka8 {[%clk 0:00:15]} 30. Qa3+ {[%clk 0:00:44]}  Kb7 {[%clk 0:00:16]} 31. Qa7+ {[%clk 0:00:35]}  Kc8 {[%clk 0:00:16]} 32. h3 {[%clk 0:00:31]}  Qc2 {[%clk 0:00:10]} 33. Rd7 {[%clk 0:00:28]}  Qb1+ {[%clk 0:00:07]} 1-0


[Site "https://www.chess.com"]

[Event "Titled Tuesday Blitz April 18 Early 2023"]
[White "Sargissyan, Sargis"]
[Black "Makhmudov, Shukhrat"]
[WhiteFideId "13303210"]
[BlackFideId "14200775"]
[WhiteElo "2109"]
[BlackElo "2135"]
[Result "1-0"]
[Round "06"]
[TimeControl "180+2"]
[Date "2023.04.18"]
[WhiteClock "0:00:38"]
[BlackClock "0:02:03"]

1. e4 {[%clk 0:03:00]}  e5 {[%clk 0:02:59]} 2. Nf3 {[%clk 0:03:00]}  Nc6 {[%clk 0:02:59]} 3. Bb5 {[%clk 0:03:00]}  a6 {[%clk 0:03:00]} 4. Ba4 {[%clk 0:03:01]}  Nf6 {[%clk 0:03:00]} 5. d3 {[%clk 0:03:01]}  b5 {[%clk 0:02:59]} 6. Bb3 {[%clk 0:03:01]}  Be7 {[%clk 0:03:00]} 7. Nc3 {[%clk 0:03:01]}  O-O {[%clk 0:02:56]} 8. a4 {[%clk 0:02:51]}  b4 {[%clk 0:02:44]} 9. Nd5 {[%clk 0:02:52]}  d6 {[%clk 0:02:38]} 10. Nxe7+ {[%clk 0:02:18]}  Qxe7 {[%clk 0:02:38]} 11. Bg5 {[%clk 0:01:58]}  Bg4 {[%clk 0:02:36]} 12. Bd5 {[%clk 0:01:53]}  Bxf3 {[%clk 0:02:19]} 13. gxf3 {[%clk 0:01:37]}  Qd7 {[%clk 0:02:17]} 14. Bxf6 {[%clk 0:01:31]}  gxf6 {[%clk 0:02:17]} 15. Qd2 {[%clk 0:01:28]}  Nd4 {[%clk 0:02:04]} 16. Rg1+ {[%clk 0:00:43]}  Kh8 {[%clk 0:02:03]} 17. Qh6 {[%clk 0:00:43]}  Nxf3+ {[%clk 0:02:03]} 18. Ke2 {[%clk 0:00:38]} 1-0


[Site "https://www.chess.com"]

[Event "Titled Tuesday Blitz April 18 Early 2023"]
[White "Prieto Aranguren, Alain"]
[Black "Kopczynski, Michal"]
[WhiteFideId "2268906"]
[BlackFideId "1124200"]
[WhiteElo "2209"]
[BlackElo "2212"]
[Result "1-0"]
[Round "06"]
[TimeControl "180+2"]
[Date "2023.04.18"]
[WhiteClock "0:00:40"]
[BlackClock "0:00:05"]

1. d4 {[%clk 0:02:55]}  Nf6 {[%clk 0:03:00]} 2. c4 {[%clk 0:02:52]}  g6 {[%clk 0:03:00]} 3. Nc3 {[%clk 0:02:51]}  Bg7 {[%clk 0:03:01]} 4. e4 {[%clk 0:02:50]}  d6 {[%clk 0:03:02]} 5. f3 {[%clk 0:02:51]}  O-O {[%clk 0:03:02]} 6. Bg5 {[%clk 0:02:50]}  c5 {[%clk 0:03:01]} 7. d5 {[%clk 0:02:50]}  e6 {[%clk 0:03:01]} 8. Qd2 {[%clk 0:02:50]}  exd5 {[%clk 0:03:01]} 9. cxd5 {[%clk 0:02:50]}  Na6 {[%clk 0:03:00]} 10. Nge2 {[%clk 0:02:45]}  Nc7 {[%clk 0:03:00]} 11. a4 {[%clk 0:02:45]}  a6 {[%clk 0:03:00]} 12. Ng3 {[%clk 0:02:45]}  Rb8 {[%clk 0:02:59]} 13. Be2 {[%clk 0:02:44]}  b5 {[%clk 0:02:59]} 14. axb5 {[%clk 0:02:43]}  axb5 {[%clk 0:03:00]} 15. h4 {[%clk 0:02:35]}  b4 {[%clk 0:03:00]} 16. Nd1 {[%clk 0:02:34]}  h5 {[%clk 0:02:58]} 17. Ne3 {[%clk 0:02:32]}  Bd7 {[%clk 0:02:47]} 18. O-O {[%clk 0:02:18]}  Bb5 {[%clk 0:02:41]} 19. Nef5 {[%clk 0:02:12]}  Bxe2 {[%clk 0:02:03]} 20. Nxg7 {[%clk 0:02:11]}  Bxf1 {[%clk 0:02:00]} 21. N7xh5 {[%clk 0:02:05]}  gxh5 {[%clk 0:01:53]} 22. Nxh5 {[%clk 0:02:05]}  Nxh5 {[%clk 0:01:50]} 23. Bxd8 {[%clk 0:02:04]}  Rfxd8 {[%clk 0:01:46]} 24. Qg5+ {[%clk 0:02:00]}  Ng7 {[%clk 0:01:47]} 25. Rxf1 {[%clk 0:01:56]}  Re8 {[%clk 0:01:43]} 26. h5 {[%clk 0:01:54]}  Re5 {[%clk 0:01:37]} 27. Qh6 {[%clk 0:01:38]}  Nb5 {[%clk 0:00:54]} 28. g4 {[%clk 0:01:35]}  c4 {[%clk 0:00:52]} 29. Qf6 {[%clk 0:01:29]}  c3 {[%clk 0:00:43]} 30. f4 {[%clk 0:01:11]}  Rxe4 {[%clk 0:00:38]} 31. h6 {[%clk 0:01:11]}  Ne8 {[%clk 0:00:32]} 32. Qg5+ {[%clk 0:01:09]}  Kh8 {[%clk 0:00:26]} 33. Qf5 {[%clk 0:01:08]}  Re7 {[%clk 0:00:20]} 34. Qg5 {[%clk 0:00:56]}  Rbb7 {[%clk 0:00:15]} 35. h7 {[%clk 0:00:54]}  Kxh7 {[%clk 0:00:12]} 36. Rf2 {[%clk 0:00:52]}  Re1+ {[%clk 0:00:05]} 37. Kg2 {[%clk 0:00:50]}  cxb2 {[%clk 0:00:05]} 38. Kf3 {[%clk 0:00:40]} 1-0


[Site "https://www.chess.com"]

[Event "Titled Tuesday Blitz April 18 Early 2023"]
[White "Topalov, Aleksandar"]
[Black "Blokhin, Sofia"]
[WhiteFideId "925659"]
[BlackFideId "4508190"]
[WhiteElo "2151"]
[BlackElo "1994"]
[Result "0-1"]
[Round "06"]
[TimeControl "180+2"]
[Date "2023.04.18"]
[WhiteClock "0:00:45"]
[BlackClock "0:00:12"]

1. b3 {[%clk 0:03:00]}  d5 {[%clk 0:02:56]} 2. Bb2 {[%clk 0:02:59]}  Nf6 {[%clk 0:02:57]} 3. Nf3 {[%clk 0:02:58]}  e6 {[%clk 0:02:57]} 4. e3 {[%clk 0:02:58]}  Be7 {[%clk 0:02:57]} 5. d4 {[%clk 0:02:58]}  O-O {[%clk 0:02:56]} 6. Nbd2 {[%clk 0:02:58]}  b6 {[%clk 0:02:55]} 7. Bd3 {[%clk 0:02:58]}  Bb7 {[%clk 0:02:54]} 8. O-O {[%clk 0:02:57]}  Ne4 {[%clk 0:02:54]} 9. Ne5 {[%clk 0:02:54]}  f5 {[%clk 0:02:53]} 10. f4 {[%clk 0:02:54]}  Nd7 {[%clk 0:02:52]} 11. Ndf3 {[%clk 0:02:46]}  Nxe5 {[%clk 0:02:45]} 12. Nxe5 {[%clk 0:02:44]}  c5 {[%clk 0:02:45]} 13. dxc5 {[%clk 0:02:38]}  Bxc5 {[%clk 0:02:41]} 14. Qe2 {[%clk 0:02:38]}  Qe7 {[%clk 0:02:31]} 15. Kh1 {[%clk 0:02:36]}  Rac8 {[%clk 0:02:25]} 16. Bd4 {[%clk 0:02:26]}  Bxd4 {[%clk 0:02:21]} 17. exd4 {[%clk 0:02:27]}  Qh4 {[%clk 0:02:14]} 18. Rf3 {[%clk 0:02:22]}  Rf6 {[%clk 0:02:00]} 19. g3 {[%clk 0:02:01]}  Qh3 {[%clk 0:01:53]} 20. Qg2 {[%clk 0:01:47]}  Qh5 {[%clk 0:01:44]} 21. Rg1 {[%clk 0:01:41]}  Rc7 {[%clk 0:01:39]} 22. g4 {[%clk 0:01:32]}  fxg4 {[%clk 0:01:31]} 23. Nxg4 {[%clk 0:01:32]}  Rg6 {[%clk 0:01:26]} 24. Rh3 {[%clk 0:01:24]}  Qxg4 {[%clk 0:01:23]} 25. Bxe4 {[%clk 0:01:23]}  dxe4 {[%clk 0:00:56]} 26. Qxg4 {[%clk 0:01:21]}  e3+ {[%clk 0:00:55]} 27. Qf3 {[%clk 0:01:19]}  e2 {[%clk 0:00:24]} 28. Re1 {[%clk 0:01:19]}  Bxf3+ {[%clk 0:00:20]} 29. Rxf3 {[%clk 0:01:18]}  Rxc2 {[%clk 0:00:20]} 30. a4 {[%clk 0:01:15]}  Rf6 {[%clk 0:00:19]} 31. Kg2 {[%clk 0:01:12]}  Rf5 {[%clk 0:00:18]} 32. Kf2 {[%clk 0:01:12]}  Rd5 {[%clk 0:00:17]} 33. Rxe2 {[%clk 0:01:10]}  Rxe2+ {[%clk 0:00:17]} 34. Kxe2 {[%clk 0:01:11]}  Rxd4 {[%clk 0:00:18]} 35. Ke3 {[%clk 0:01:02]}  Rd7 {[%clk 0:00:18]} 36. Rf2 {[%clk 0:01:00]}  Kf7 {[%clk 0:00:19]} 37. Rc2 {[%clk 0:01:00]}  Kf6 {[%clk 0:00:19]} 38. Rc8 {[%clk 0:00:58]}  Kf5 {[%clk 0:00:19]} 39. Rf8+ {[%clk 0:00:58]}  Kg4 {[%clk 0:00:19]} 40. Re8 {[%clk 0:00:56]}  Kf5 {[%clk 0:00:17]} 41. Rf8+ {[%clk 0:00:56]}  Kg4 {[%clk 0:00:17]} 42. Ke4 {[%clk 0:00:56]}  Kh3 {[%clk 0:00:16]} 43. Rh8 {[%clk 0:00:51]}  h6 {[%clk 0:00:15]} 44. Ke5 {[%clk 0:00:51]}  Kxh2 {[%clk 0:00:16]} 45. Kxe6 {[%clk 0:00:52]}  Rc7 {[%clk 0:00:15]} 46. f5 {[%clk 0:00:49]}  Kg3 {[%clk 0:00:15]} 47. f6 {[%clk 0:00:46]}  Rc6+ {[%clk 0:00:15]} 48. Kf5 {[%clk 0:00:44]}  Rxf6+ {[%clk 0:00:14]} 49. Ke5 {[%clk 0:00:45]}  Kg4 {[%clk 0:00:13]} 50. Ra8 {[%clk 0:00:45]}  Rf7 {[%clk 0:00:13]} 51. Ke6 {[%clk 0:00:45]}  Rb7 {[%clk 0:00:13]} 52. Kd6 {[%clk 0:00:44]}  h5 {[%clk 0:00:13]} 53. Kc6 {[%clk 0:00:45]}  Rf7 {[%clk 0:00:12]} 0-1


[Site "https://www.chess.com"]

[Event "Titled Tuesday Blitz April 18 Early 2023"]
[White "Andrews, Todd"]
[Black "babbilator"]
[WhiteFideId "2012456"]
[WhiteElo "2426"]
[BlackElo "2272"]
[Result "1-0"]
[Round "06"]
[TimeControl "180+2"]
[Date "2023.04.18"]
[WhiteClock "0:00:58"]
[BlackClock "0:00:03"]

1. e4 {[%clk 0:03:00]}  c5 {[%clk 0:02:53]} 2. Nf3 {[%clk 0:03:00]}  e6 {[%clk 0:02:53]} 3. d3 {[%clk 0:03:00]}  d5 {[%clk 0:02:51]} 4. Nbd2 {[%clk 0:03:00]}  Nf6 {[%clk 0:02:52]} 5. g3 {[%clk 0:03:00]}  Nc6 {[%clk 0:02:51]} 6. Bg2 {[%clk 0:03:01]}  Be7 {[%clk 0:02:52]} 7. O-O {[%clk 0:03:01]}  b5 {[%clk 0:02:52]} 8. Re1 {[%clk 0:03:01]}  b4 {[%clk 0:02:52]} 9. e5 {[%clk 0:03:00]}  Nd7 {[%clk 0:02:51]} 10. Nf1 {[%clk 0:03:00]}  a5 {[%clk 0:02:51]} 11. h4 {[%clk 0:03:00]}  h6 {[%clk 0:02:49]} 12. Bf4 {[%clk 0:02:59]}  Ba6 {[%clk 0:02:49]} 13. Qd2 {[%clk 0:02:50]}  a4 {[%clk 0:02:46]} 14. h5 {[%clk 0:02:36]}  Nb6 {[%clk 0:02:17]} 15. N1h2 {[%clk 0:02:35]}  c4 {[%clk 0:02:17]} 16. d4 {[%clk 0:02:26]}  Qc7 {[%clk 0:01:48]} 17. c3 {[%clk 0:02:21]}  a3 {[%clk 0:01:48]} 18. Rec1 {[%clk 0:02:06]}  axb2 {[%clk 0:01:48]} 19. Qxb2 {[%clk 0:02:05]}  Na4 {[%clk 0:01:48]} 20. Qc2 {[%clk 0:01:57]}  Nxc3 {[%clk 0:01:43]} 21. a3 {[%clk 0:01:57]}  Nb5 {[%clk 0:01:35]} 22. axb4 {[%clk 0:01:56]}  Nxb4 {[%clk 0:01:11]} 23. Qa4 {[%clk 0:01:55]}  O-O {[%clk 0:00:53]} 24. Bf1 {[%clk 0:01:39]}  Rfb8 {[%clk 0:00:21]} 25. Ng4 {[%clk 0:01:32]}  Qc6 {[%clk 0:00:13]} 26. Qd1 {[%clk 0:01:25]}  Bc8 {[%clk 0:00:08]} 27. Rxa8 {[%clk 0:01:15]}  Rxa8 {[%clk 0:00:08]} 28. Bxh6 {[%clk 0:01:05]}  gxh6 {[%clk 0:00:08]} 29. Qd2 {[%clk 0:01:05]}  Kf8 {[%clk 0:00:09]} 30. Qxh6+ {[%clk 0:01:04]}  Ke8 {[%clk 0:00:09]} 31. Qg7 {[%clk 0:01:01]}  Kd7 {[%clk 0:00:03]} 32. h6 {[%clk 0:00:58]} 1-0


[Site "https://www.chess.com"]

[Event "Titled Tuesday Blitz April 18 Early 2023"]
[White "Kalajzic, Ivan"]
[Black "Pein, Jonathan"]
[WhiteFideId "14506378"]
[BlackFideId "417092"]
[WhiteElo "2203"]
[BlackElo "2151"]
[Result "1-0"]
[Round "06"]
[TimeControl "180+2"]
[Date "2023.04.18"]
[WhiteClock "0:00:29"]
[BlackClock "0:00:20"]

1. d4 {[%clk 0:03:00]}  Nf6 {[%clk 0:02:56]} 2. Nc3 {[%clk 0:03:00]}  d6 {[%clk 0:02:54]} 3. Bg5 {[%clk 0:03:00]}  c6 {[%clk 0:02:45]} 4. e4 {[%clk 0:02:59]}  Qa5 {[%clk 0:02:43]} 5. Qd2 {[%clk 0:02:59]}  Nbd7 {[%clk 0:02:37]} 6. f4 {[%clk 0:02:49]}  e5 {[%clk 0:02:35]} 7. Nf3 {[%clk 0:02:46]}  exf4 {[%clk 0:02:34]} 8. Bxf4 {[%clk 0:02:44]}  Be7 {[%clk 0:02:34]} 9. Bd3 {[%clk 0:02:35]}  b5 {[%clk 0:02:31]} 10. O-O {[%clk 0:02:34]}  Bb7 {[%clk 0:02:24]} 11. Rae1 {[%clk 0:02:28]}  O-O {[%clk 0:02:24]} 12. Nd5 {[%clk 0:02:27]}  Qd8 {[%clk 0:02:24]} 13. Nxe7+ {[%clk 0:02:25]}  Qxe7 {[%clk 0:02:25]} 14. e5 {[%clk 0:02:24]}  dxe5 {[%clk 0:02:25]} 15. dxe5 {[%clk 0:02:21]}  Nd5 {[%clk 0:02:25]} 16. Bg3 {[%clk 0:02:13]}  Rae8 {[%clk 0:02:19]} 17. b3 {[%clk 0:01:58]}  Nc5 {[%clk 0:02:19]} 18. c4 {[%clk 0:01:51]}  Nxd3 {[%clk 0:02:17]} 19. Qxd3 {[%clk 0:01:49]}  bxc4 {[%clk 0:02:17]} 20. bxc4 {[%clk 0:01:49]}  Ba6 {[%clk 0:02:17]} 21. Qd4 {[%clk 0:01:46]}  Nb4 {[%clk 0:02:10]} 22. Rc1 {[%clk 0:01:09]}  c5 {[%clk 0:02:06]} 23. Qd6 {[%clk 0:01:05]}  Nxa2 {[%clk 0:01:46]} 24. Qxa6 {[%clk 0:01:04]}  Nxc1 {[%clk 0:01:45]} 25. Rxc1 {[%clk 0:01:05]}  Rd8 {[%clk 0:01:40]} 26. h4 {[%clk 0:01:04]}  Rd3 {[%clk 0:01:39]} 27. Re1 {[%clk 0:00:59]}  Rfd8 {[%clk 0:01:38]} 28. e6 {[%clk 0:00:59]}  Rd1 {[%clk 0:01:31]} 29. exf7+ {[%clk 0:00:58]}  Kxf7 {[%clk 0:01:27]} 30. Rxd1 {[%clk 0:00:45]}  Rxd1+ {[%clk 0:01:28]} 31. Kh2 {[%clk 0:00:45]}  h6 {[%clk 0:01:28]} 32. Ne5+ {[%clk 0:00:43]}  Kg8 {[%clk 0:01:26]} 33. Qg6 {[%clk 0:00:42]}  Rd6 {[%clk 0:01:11]} 34. Qg4 {[%clk 0:00:40]}  Rd4 {[%clk 0:01:11]} 35. Qc8+ {[%clk 0:00:39]}  Kh7 {[%clk 0:01:04]} 36. Qf5+ {[%clk 0:00:38]}  Kg8 {[%clk 0:01:04]} 37. Nc6 {[%clk 0:00:36]}  Rxh4+ {[%clk 0:00:57]} 38. Bxh4 {[%clk 0:00:36]}  Qxh4+ {[%clk 0:00:58]} 39. Kg1 {[%clk 0:00:31]}  Qe1+ {[%clk 0:00:47]} 40. Qf1 {[%clk 0:00:31]}  Qe3+ {[%clk 0:00:47]} 41. Kh1 {[%clk 0:00:31]}  Qe6 {[%clk 0:00:40]} 42. Qf3 {[%clk 0:00:31]}  a5 {[%clk 0:00:38]} 43. Qd5 {[%clk 0:00:31]}  Qxd5 {[%clk 0:00:37]} 44. cxd5 {[%clk 0:00:32]}  Kf8 {[%clk 0:00:30]} 45. d6 {[%clk 0:00:31]}  Ke8 {[%clk 0:00:29]} 46. Nxa5 {[%clk 0:00:31]}  Kd7 {[%clk 0:00:29]} 47. Nc4 {[%clk 0:00:32]}  g6 {[%clk 0:00:28]} 48. Kh2 {[%clk 0:00:32]}  Ke6 {[%clk 0:00:28]} 49. Kg3 {[%clk 0:00:33]}  Kd7 {[%clk 0:00:26]} 50. Kf4 {[%clk 0:00:33]}  Ke6 {[%clk 0:00:27]} 51. Ke4 {[%clk 0:00:34]}  Kd7 {[%clk 0:00:23]} 52. Ke5 {[%clk 0:00:34]}  h5 {[%clk 0:00:20]} 53. Nb6+ {[%clk 0:00:32]}  Kc6 {[%clk 0:00:18]} 54. d7 {[%clk 0:00:30]}  Kc7 {[%clk 0:00:18]} 55. Ke6 {[%clk 0:00:30]}  Kd8 {[%clk 0:00:19]} 56. Nc4 {[%clk 0:00:28]}  g5 {[%clk 0:00:19]} 57. Ne5 {[%clk 0:00:29]}  c4 {[%clk 0:00:20]} 58. Nf7+ {[%clk 0:00:28]}  Kc7 {[%clk 0:00:20]} 59. d8=Q+ {[%clk 0:00:29]}  Kc6 {[%clk 0:00:21]} 60. Qc8+ {[%clk 0:00:28]}  Kb5 {[%clk 0:00:21]} 61. Kd5 {[%clk 0:00:29]}  c3 {[%clk 0:00:19]} 62. Qb7+ {[%clk 0:00:29]}  Ka4 {[%clk 0:00:19]} 63. Kc4 {[%clk 0:00:29]}  Ka3 {[%clk 0:00:20]} 64. Qb3# {[%clk 0:00:29]} 1-0


[Site "https://www.chess.com"]

[Event "Titled Tuesday Blitz April 18 Early 2023"]
[White "Sailer, Mike"]
[Black "Zacurdajev, Dmitry"]
[WhiteFideId "2012901"]
[BlackFideId "4196309"]
[WhiteElo "2109"]
[BlackElo "2189"]
[Result "1-0"]
[Round "06"]
[TimeControl "180+2"]
[Date "2023.04.18"]
[WhiteClock "0:00:15"]
[BlackClock "0:00:24"]

1. d4 {[%clk 0:02:59]}  d5 {[%clk 0:02:59]} 2. Bg5 {[%clk 0:02:57]}  Nf6 {[%clk 0:02:58]} 3. Bxf6 {[%clk 0:02:57]}  exf6 {[%clk 0:02:58]} 4. e3 {[%clk 0:02:57]}  Bd6 {[%clk 0:02:57]} 5. c4 {[%clk 0:02:58]}  dxc4 {[%clk 0:02:58]} 6. Bxc4 {[%clk 0:02:58]}  f5 {[%clk 0:02:58]} 7. Nc3 {[%clk 0:02:58]}  O-O {[%clk 0:02:58]} 8. Nge2 {[%clk 0:02:58]}  c6 {[%clk 0:02:57]} 9. O-O {[%clk 0:02:57]}  Nd7 {[%clk 0:02:57]} 10. a3 {[%clk 0:02:47]}  Nf6 {[%clk 0:02:56]} 11. b4 {[%clk 0:02:46]}  Qc7 {[%clk 0:02:47]} 12. g3 {[%clk 0:02:45]}  Ne4 {[%clk 0:02:46]} 13. Rc1 {[%clk 0:02:42]}  Qe7 {[%clk 0:02:38]} 14. Nf4 {[%clk 0:02:22]}  Qg5 {[%clk 0:02:04]} 15. Nce2 {[%clk 0:01:53]}  Qh6 {[%clk 0:01:57]} 16. h4 {[%clk 0:01:48]}  g5 {[%clk 0:01:53]} 17. hxg5 {[%clk 0:01:46]}  Nxg5 {[%clk 0:01:54]} 18. Kg2 {[%clk 0:01:42]}  Be6 {[%clk 0:01:30]} 19. Rh1 {[%clk 0:01:34]}  Qf6 {[%clk 0:01:27]} 20. Nh5 {[%clk 0:01:23]}  Qe7 {[%clk 0:01:23]} 21. Bxe6 {[%clk 0:01:13]}  fxe6 {[%clk 0:01:21]} 22. Nef4 {[%clk 0:01:10]}  e5 {[%clk 0:01:08]} 23. Qb3+ {[%clk 0:01:00]}  Rf7 {[%clk 0:01:08]} 24. dxe5 {[%clk 0:00:56]}  Qxe5 {[%clk 0:01:09]} 25. Qc4 {[%clk 0:00:31]}  Re8 {[%clk 0:01:07]} 26. Rcd1 {[%clk 0:00:27]}  Qe4+ {[%clk 0:00:55]} 27. Qxe4 {[%clk 0:00:27]}  Nxe4 {[%clk 0:00:56]} 28. f3 {[%clk 0:00:14]}  Bxf4 {[%clk 0:00:56]} 29. Nxf4 {[%clk 0:00:07]}  Nc3 {[%clk 0:00:57]} 30. Rd3 {[%clk 0:00:04]}  Nb5 {[%clk 0:00:57]} 31. Kf2 {[%clk 0:00:02]}  Ree7 {[%clk 0:00:33]} 32. Rhd1 {[%clk 0:00:02]}  h6 {[%clk 0:00:29]} 33. Nh5 {[%clk 0:00:02]}  Re8 {[%clk 0:00:29]} 34. Rd7 {[%clk 0:00:02]}  Nc3 {[%clk 0:00:25]} 35. Rxf7 {[%clk 0:00:02]}  Kxf7 {[%clk 0:00:25]} 36. Rd7+ {[%clk 0:00:03]}  Re7 {[%clk 0:00:26]} 37. Rxe7+ {[%clk 0:00:03]}  Kxe7 {[%clk 0:00:27]} 38. Nf4 {[%clk 0:00:03]}  Nb1 {[%clk 0:00:27]} 39. a4 {[%clk 0:00:04]}  Nc3 {[%clk 0:00:27]} 40. a5 {[%clk 0:00:04]}  Na2 {[%clk 0:00:28]} 41. Nd3 {[%clk 0:00:04]}  b6 {[%clk 0:00:28]} 42. a6 {[%clk 0:00:04]}  Nc3 {[%clk 0:00:28]} 43. Ke1 {[%clk 0:00:03]}  Nd5 {[%clk 0:00:27]} 44. Kd2 {[%clk 0:00:03]}  Nc7 {[%clk 0:00:28]} 45. b5 {[%clk 0:00:03]}  cxb5 {[%clk 0:00:26]} 46. Nb4 {[%clk 0:00:03]}  Kd6 {[%clk 0:00:25]} 47. Kd3 {[%clk 0:00:04]}  Kc5 {[%clk 0:00:26]} 48. Kc3 {[%clk 0:00:05]}  Nd5+ {[%clk 0:00:25]} 49. Nxd5 {[%clk 0:00:05]}  Kxd5 {[%clk 0:00:26]} 50. Kb4 {[%clk 0:00:05]}  Kc6 {[%clk 0:00:27]} 51. e4 {[%clk 0:00:04]}  fxe4 {[%clk 0:00:20]} 52. fxe4 {[%clk 0:00:05]}  h5 {[%clk 0:00:15]} 53. e5 {[%clk 0:00:05]}  Kd5 {[%clk 0:00:16]} 54. Kxb5 {[%clk 0:00:06]}  Kxe5 {[%clk 0:00:14]} 55. Kc6 {[%clk 0:00:07]}  Ke4 {[%clk 0:00:15]} 56. Kb7 {[%clk 0:00:07]}  Kf3 {[%clk 0:00:16]} 57. Kxa7 {[%clk 0:00:08]}  Kxg3 {[%clk 0:00:17]} 58. Kxb6 {[%clk 0:00:09]}  h4 {[%clk 0:00:18]} 59. a7 {[%clk 0:00:10]}  h3 {[%clk 0:00:19]} 60. a8=Q {[%clk 0:00:10]}  h2 {[%clk 0:00:20]} 61. Qh1 {[%clk 0:00:10]}  Kh3 {[%clk 0:00:20]} 62. Kc5 {[%clk 0:00:11]}  Kg3 {[%clk 0:00:21]} 63. Kd4 {[%clk 0:00:12]}  Kh3 {[%clk 0:00:21]} 64. Ke3 {[%clk 0:00:13]}  Kg3 {[%clk 0:00:22]} 65. Ke2 {[%clk 0:00:13]}  Kh3 {[%clk 0:00:23]} 66. Kf2 {[%clk 0:00:14]}  Kh4 {[%clk 0:00:23]} 67. Qxh2+ {[%clk 0:00:14]}  Kg4 {[%clk 0:00:24]} 68. Qe5 {[%clk 0:00:15]} 1-0


[Site "https://www.chess.com"]